bitfinex-derivatives/quotes_BTCF0:USTF0_20260118
["timestamp","ask_amount","ask_price","bid_price","bid_amount"]
[1768743807497,0.00462155,95204.0,95188.0,0.15820282]
[1768743807700,0.00462155,95204.0,95185.0,0.25939459]
[1768743807899,0.00462155,95203.0,95189.0,0.15857355]
[1768743808101,0.00462155,95204.0,95188.0,0.15857355]
[1768743808406,0.00462155,95204.0,95185.0,0.04991383]
[1768743808600,0.12333537,95205.0,95189.0,0.15857355]
[1768743808907,1.40210155,95204.0,95189.0,0.10504643]
[1768743809106,0.00462155,95201.0,95186.0,0.09059061]
[1768743809404,1.39748,95204.0,95190.0,0.26309886]
[1768743809405,0.00462155,95203.0,95190.0,0.26309886]
[1768743809607,0.00462155,95202.0,95190.0,0.10504643]
[1768743809796,0.00462155,95201.0,95186.0,0.09059061]
[1768743809997,0.00462155,95202.0,95191.0,0.15659584]
[1768743810194,0.00462155,95202.0,95190.0,0.26164502]
[1768743810394,0.00462155,95201.0,95186.0,0.09059061]
[1768743810605,0.00462155,95202.0,95186.0,0.09059061]
[1768743810807,0.00462155,95200.0,95190.0,0.25932845]
[1768743811008,0.00462155,95202.0,95190.0,0.15428258]
[1768743811209,0.00462155,95200.0,95187.0,0.09059061]
[1768743811412,0.00462155,95201.0,95191.0,0.15845778]
[1768743811609,1.39748,95203.0,95191.0,0.15845778]
[1768743811804,1.40210155,95203.0,95190.0,0.10504643]
[1768743812010,0.00462155,95199.0,95187.0,0.09059061]
[1768743812310,0.00462155,95201.0,95191.0,0.15686307]
[1768743812514,1.39748,95203.0,95188.0,0.2619095]
[1768743812710,0.00462155,95200.0,95189.0,0.15686307]
[1768743812916,0.00462155,95201.0,95189.0,0.26191281]
[1768743813099,0.00462155,95199.0,95189.0,0.10504974]
[1768743813305,1.39748,95203.0,95190.0,0.15710488]
[1768743813506,0.00462155,95200.0,95190.0,0.15710488]
[1768743813707,0.00462155,95197.0,95189.0,0.15710488]
[1768743813907,0.00462155,95200.0,95184.0,0.00231131]
[1768743814303,0.00462155,95198.0,95189.0,0.1578898]
[1768743814603,0.00462155,95200.0,95184.0,0.00231131]
[1768743814804,0.00462155,95200.0,95184.0,0.09290192]
[1768743815005,0.00462155,95198.0,95190.0,0.15776054]
[1768743815210,1.39748,95203.0,95185.0,0.05232378]
[1768743815211,0.00462155,95200.0,95185.0,0.05232378]
[1768743815516,0.00462155,95199.0,95191.0,0.15776054]
[1768743816013,0.00462155,95199.0,95185.0,0.05232378]
[1768743816014,0.00462155,95194.0,95189.0,0.15581162]
[1768743816203,0.00462155,95199.0,95192.0,0.1565633]
[1768743816405,0.00462155,95197.0,95192.0,0.1565633]
[1768743816711,0.00462155,95195.0,95190.0,0.15581162]
[1768743816913,0.00462155,95199.0,95189.0,0.1565633]
[1768743817114,0.00462155,95199.0,95192.0,0.15713203]
[1768743817415,0.00462155,95194.0,95188.0,0.15581162]
[1768743817619,0.00462155,95199.0,95190.0,0.15713203]
[1768743817912,0.00462155,95197.0,95188.0,0.10504698]
[1768743818110,0.00462155,95197.0,95189.0,0.15653173]
[1768743818315,0.00462155,95195.0,95189.0,0.15653173]
[1768743818515,0.00462155,95196.0,95187.0,0.10504698]
[1768743818814,0.00462155,95198.0,95188.0,0.1570699]
[1768743819216,0.00462155,95194.0,95187.0,0.1570699]
[1768743819516,0.00462155,95197.0,95186.0,0.10504974]
[1768743819710,0.00462155,95197.0,95188.0,0.1570699]
[1768743819912,0.00462155,95194.0,95188.0,0.1570699]
[1768743820215,0.00462155,95196.0,95187.0,0.09666452]
[1768743820407,0.00462155,95197.0,95187.0,0.09666452]
[1768743820604,0.00462155,95197.0,95188.0,0.10505194]
[1768743820809,0.00462155,95194.0,95188.0,0.10505194]
[1768743821009,0.00462155,95196.0,95189.0,0.15787427]
[1768743821419,0.00462155,95192.0,95190.0,0.09666452]
[1768743821615,0.00462155,95195.0,95189.0,0.15787427]
[1768743821918,0.00462155,95195.0,95191.0,0.25453879]
[1768743822216,1.39748,95203.0,95191.0,0.25453879]
[1768743822217,0.00462155,95194.0,95191.0,0.09666452]
[1768743822411,0.00462155,95194.0,95185.0,0.20171481]
[1768743822616,1.39748,95203.0,95192.0,0.15844619]
[1768743822808,0.00462155,95197.0,95186.0,0.26349593]
[1768743823009,0.00462155,95197.0,95186.0,0.10504974]
[1768743823209,0.00462155,95193.0,95185.0,0.09666452]
[1768743823418,0.00462155,95197.0,95187.0,0.15780195]
[1768743823717,0.00462155,95196.0,95186.0,0.26285169]
[1768743824016,0.00462155,95196.0,95185.0,0.09666452]
[1768743824217,0.00462155,95192.0,95187.0,0.35859931]
[1768743824417,0.00462155,95196.0,95187.0,0.09666452]
[1768743824616,0.00462155,95194.0,95187.0,0.09666452]
[1768743824817,0.00462155,95194.0,95188.0,0.1568834]
[1768743825017,0.02833897,95202.0,95188.0,0.1568834]
[1768743825217,0.00462155,95189.0,95188.0,0.1568834]
[1768743825418,0.00462155,95189.0,95186.0,0.1575379]
[1768743825619,0.02833897,95202.0,95186.0,0.1575379]
[1768743825818,0.00462155,95189.0,95184.0,0.00231131]
[1768743826017,0.00462155,95190.0,95187.0,0.15854835]
[1768743826519,0.00462155,95188.0,95184.0,0.00231131]
[1768743826720,0.00462155,95190.0,95188.0,0.15854835]
[1768743827020,0.00462155,95190.0,95187.0,0.15854835]
[1768743827219,0.00462155,95185.0,95184.0,0.09897583]
[1768743827524,0.00462155,95189.0,95188.0,0.15766447]
[1768743827721,0.09456,95195.0,95188.0,0.15766447]
[1768743828020,0.00462155,95189.0,95184.0,0.09897583]
[1768743828213,0.00462155,95186.0,95184.0,0.09897583]
[1768743828413,0.09456,95195.0,95185.0,0.0658291]
[1768743828708,0.09456,95194.0,95185.0,0.0658291]
[1768743828917,0.00462155,95186.0,95185.0,0.0658291]
[1768743830608,0.00462155,95186.0,95185.0,0.0374697]
[1768743831619,0.00462155,95186.0,95184.0,0.00231131]
[1768743831819,0.00462155,95185.0,95184.0,0.00231131]
[1768743832416,0.00462155,95185.0,95179.0,0.05616248]
[1768743832716,0.105069,95194.0,95172.0,0.09790555]
[1768743832918,0.105069,95194.0,95173.0,0.09790555]
[1768743833121,0.105069,95194.0,95178.0,0.15743612]
[1768743833322,0.09456,95194.0,95174.0,0.09790555]
[1768743833521,0.09456,95194.0,95174.0,0.25534167]
[1768743833924,0.09456,95194.0,95174.0,0.09790555]
[1768743834125,0.09471762,95194.0,95174.0,0.09790555]
[1768743834323,0.09471762,95194.0,95175.0,0.25559858]
[1768743834716,0.09471762,95194.0,95175.0,0.09790555]
[1768743835116,0.09471762,95194.0,95176.0,0.15654106]
[1768743835420,0.09471762,95194.0,95176.0,0.25444661]
[1768743835819,0.09471762,95194.0,95176.0,0.09790555]
[1768743836220,0.09471762,95194.0,95177.0,0.15788846]
[1768743836822,0.09471762,95194.0,95177.0,0.25579401]
[1768743837123,0.09471762,95194.0,95177.0,0.09790555]
[1768743837524,0.09471762,95194.0,95178.0,0.15743981]
[1768743838525,0.09471762,95194.0,95178.0,0.25534536]
[1768743838826,0.09471762,95194.0,95178.0,0.09790555]
[1768743839127,0.09471762,95194.0,95179.0,0.15779289]
[1768743839420,1.30312,95193.0,95179.0,0.15779289]
[1768743839626,1.39768,95193.0,95179.0,0.15779289]
[1768743840325,1.39768,95193.0,95179.0,0.25569844]
[1768743840526,1.39768,95193.0,95180.0,0.09790555]
[1768743841425,0.00015762,95194.0,95180.0,0.09790555]
[1768743841625,1.30312,95192.0,95180.0,0.09790555]
[1768743842430,0.00015762,95194.0,95180.0,0.09790555]
[1768743842634,1.30304,95191.0,95180.0,0.09790555]
[1768743843325,1.30304,95191.0,95180.0,0.09559375]
[1768743844521,1.30292,95190.0,95180.0,0.09559375]
[1768743844721,1.39748,95190.0,95180.0,0.09559375]
[1768743846522,0.00015762,95194.0,95180.0,0.09559375]
[1768743846832,1.39752,95193.0,95180.0,0.09559375]
[1768743847332,0.09456,95193.0,95182.0,0.21376708]
[1768743847534,0.09456,95193.0,95183.0,0.09790555]
[1768743847834,0.09456,95193.0,95177.0,0.15660873]
[1768743848130,0.09456,95193.0,95176.0,0.09790555]
[1768743848319,0.09456,95193.0,95177.0,0.15741472]
[1768743848522,0.00015762,95194.0,95178.0,0.09790555]
[1768743848721,1.39736,95193.0,95179.0,0.09790555]
[1768743848933,1.39736,95193.0,95180.0,0.09790555]
[1768743849528,0.00015762,95194.0,95180.0,0.09790555]
[1768743849835,1.39724,95193.0,95180.0,0.09790555]
[1768743851431,1.39724,95193.0,95180.0,0.09559327]
[1768743851626,1.30252,95192.0,95180.0,0.09559327]
[1768743851833,0.09456,95191.0,95180.0,0.09559327]
[1768743852824,0.00015762,95194.0,95180.0,0.09559327]
[1768743853028,1.39708,95193.0,95180.0,0.09559327]
[1768743853333,0.00015762,95194.0,95180.0,0.09559327]
[1768743853534,1.39696,95193.0,95180.0,0.09559327]
[1768743853734,1.39696,95193.0,95172.0,0.13276212]
[1768743853735,0.09456,95192.0,95182.0,0.09790555]
[1768743854335,0.09456,95192.0,95183.0,0.10505691]
[1768743854734,0.09456,95192.0,95184.0,0.09790555]
[1768743854928,0.00015762,95194.0,95185.0,0.11586153]
[1768743855125,0.09456,95199.0,95188.0,0.09790555]
[1768743855330,1.15144,95200.0,95193.0,0.11586153]
[1768743855533,0.00231083,95204.0,95194.0,0.09790555]
[1768743855736,0.00231083,95204.0,95195.0,0.11586153]
[1768743856042,0.09456,95212.0,95199.0,0.11586153]
[1768743856540,0.09456,95212.0,95196.0,0.11586153]
[1768743856937,0.3084764,95212.0,95196.0,0.00015762]
[1768743858837,1.39676,95211.0,95196.0,0.00015762]
[1768743859036,0.2139164,95212.0,95196.0,0.00015762]
[1768743859037,1.39676,95210.0,95196.0,0.00015762]
[1768743861238,0.09443717,95212.0,95196.0,0.00015762]
[1768743861438,1.39676,95211.0,95196.0,0.00015762]
[1768743861837,1.51623923,95211.0,95196.0,0.00015762]
[1768743863338,0.11355535,95210.0,95196.0,0.00015762]
[1768743864042,1.3022,95209.0,95196.0,0.00015762]
[1768743865745,1.41575535,95209.0,95196.0,0.00015762]
[1768743865946,0.21100175,95207.0,95189.0,0.0023112]
[1768743866139,0.21100175,95205.0,95189.0,0.0023112]
[1768743866347,0.11355535,95201.0,95191.0,0.10503925]
[1768743866539,0.11355535,95201.0,95189.0,0.0023112]
[1768743866738,0.21100175,95201.0,95189.0,0.0023112]
[1768743866939,0.11355535,95200.0,95190.0,0.10504532]
[1768743867340,0.0974464,95201.0,95190.0,0.10504532]
[1768743867540,0.0974464,95201.0,95190.0,0.10273255]
[1768743867541,0.21100175,95201.0,95190.0,0.10273255]
[1768743867740,0.11355535,95200.0,95190.0,0.10273255]
[1768743867945,0.11355535,95200.0,95189.0,0.0023112]
[1768743871453,0.0974464,95201.0,95189.0,0.0023112]
[1768743872352,0.11355535,95204.0,95189.0,0.0023112]
[1768743872855,0.21100175,95204.0,95189.0,0.0023112]
[1768743873152,0.11355535,95203.0,95189.0,0.0023112]
[1768743874157,0.09456,95206.0,95190.0,0.10504643]
[1768743874341,0.11355535,95205.0,95190.0,0.10504643]
[1768743875256,0.1920064,95206.0,95190.0,0.10504643]
[1768743875459,0.11355535,95205.0,95190.0,0.10504643]
[1768743878553,0.11110733,95204.0,95190.0,0.10504643]
[1768743879854,0.09456,95206.0,95190.0,0.10504643]
[1768743879855,0.11110733,95201.0,95190.0,0.10504643]
[1768743880657,0.09102523,95202.0,95190.0,0.10504643]
[1768743882154,0.09102523,95200.0,95189.0,0.0023112]
[1768743882357,0.09456,95206.0,95188.0,0.05681038]
[1768743882358,0.11110733,95197.0,95188.0,0.05680989]
[1768743882558,0.11110733,95197.0,95182.0,0.07545183]
[1768743882758,0.11110733,95197.0,95183.0,0.07545183]
[1768743882954,0.11110733,95197.0,95183.0,0.33719395]
[1768743883155,0.09102523,95198.0,95183.0,0.15669183]
[1768743883459,0.20213256,95194.0,95184.0,0.10505029]
[1768743883654,0.11110733,95192.0,95184.0,0.10505029]
[1768743883961,0.06022435,95193.0,95185.0,0.15719844]
[1768743884156,0.09456,95206.0,95185.0,0.15719844]
[1768743884456,0.09456,95206.0,95176.0,0.10941961]
[1768743884457,0.09456,95206.0,95173.0,0.09444494]
[1768743884662,0.09456,95206.0,95186.0,0.15824871]
[1768743884861,0.010508,95204.0,95185.0,0.15397622]
[1768743885063,0.010508,95204.0,95187.0,0.06931737]
[1768743885462,0.010508,95204.0,95184.0,0.15847915]
[1768743885657,0.09456,95206.0,95175.0,0.09487453]
[1768743885961,0.07232072,95205.0,95182.0,0.15847915]
[1768743886352,0.07128681,95203.0,95177.0,0.06711292]
[1768743886562,0.07128681,95203.0,95176.0,0.09487453]
[1768743886763,0.07128681,95203.0,95177.0,0.10504698]
[1768743886963,0.07128681,95203.0,95178.0,0.1569593]
[1768743887154,0.07128681,95203.0,95177.0,0.26200628]
[1768743887462,0.07128681,95203.0,95176.0,0.09487453]
[1768743887662,0.07128681,95203.0,95178.0,0.26177923]
[1768743888067,0.07128681,95203.0,95177.0,0.09487453]
[1768743888365,0.07128681,95203.0,95179.0,0.15680956]
[1768743888863,0.07128681,95203.0,95177.0,0.20429414]
[1768743889068,0.07128681,95203.0,95179.0,0.15680956]
[1768743889256,0.07128681,95203.0,95178.0,0.35832221]
[1768743889457,0.07128681,95203.0,95178.0,0.25327027]
[1768743889657,0.07128681,95203.0,95178.0,0.09487453]
[1768743889860,1.30228,95202.0,95182.0,0.09487453]
[1768743890064,0.09456,95201.0,95182.0,0.09487453]
[1768743890365,0.09456,95201.0,95183.0,0.06680601]
[1768743891264,0.1640951,95201.0,95183.0,0.06680601]
[1768743891566,0.1640951,95201.0,95178.0,0.15682041]
[1768743891965,0.010509,95198.0,95178.0,0.26187125]
[1768743892765,0.010509,95198.0,95178.0,0.35780592]
[1768743892962,0.01066662,95198.0,95178.0,0.35780592]
[1768743893567,0.010509,95196.0,95178.0,0.35780592]
[1768743894162,0.06980072,95197.0,95178.0,0.26187125]
[1768743894467,0.010509,95194.0,95178.0,0.26187125]
[1768743895069,0.010509,95192.0,95178.0,0.35780592]
[1768743896368,0.010509,95192.0,95178.0,0.25275508]
[1768743896759,0.09456,95195.0,95178.0,0.25275508]
[1768743896760,0.09456,95195.0,95179.0,0.09593467]
[1768743897171,0.010509,95196.0,95180.0,0.25264704]
[1768743897371,0.09456,95195.0,95180.0,0.25264704]
[1768743897867,0.010509,95196.0,95180.0,0.25264704]
[1768743898065,0.09456,95195.0,95180.0,0.25264704]
[1768743899673,1.30247762,95198.0,95180.0,0.25264704]
[1768743899674,0.00015762,95198.0,95180.0,0.25264704]
[1768743899858,0.09456,95197.0,95181.0,0.09593467]
[1768743900063,0.010509,95194.0,95181.0,0.09362287]
[1768743900367,0.105069,95197.0,95182.0,0.15693855]
[1768743900571,0.010509,95197.0,95182.0,0.15693855]
[1768743900773,0.00015762,95198.0,95182.0,0.15693855]
[1768743900774,0.09456,95196.0,95183.0,0.11621779]
[1768743901077,0.00015762,95198.0,95184.0,0.15693855]
[1768743901271,0.09456,95195.0,95185.0,0.11621779]
[1768743901465,0.00015762,95198.0,95185.0,0.11621779]
[1768743901772,0.09456,95199.0,95187.0,0.11621779]
[1768743901966,0.09456,95203.0,95189.0,0.11621779]
[1768743902268,0.00231083,95204.0,95193.0,0.11621779]
[1768743902472,0.00231083,95204.0,95194.0,0.09593467]
[1768743902672,0.00231083,95204.0,95195.0,0.09593467]
[1768743904076,0.00231083,95204.0,95195.0,0.21215246]
[1768743904269,0.00231083,95204.0,95196.0,0.21215246]
[1768743904664,0.00231083,95204.0,95197.0,0.09593467]
[1768743906676,0.00231083,95204.0,95197.0,0.09362347]
[1768743910473,1.30208,95207.0,95197.0,0.09362347]
[1768743910674,0.09456,95206.0,95197.0,0.09362347]
[1768743911381,0.00231072,95209.0,95198.0,0.09593467]
[1768743911674,1.39664,95208.0,95198.0,0.09593467]
[1768743913172,1.39664,95208.0,95200.0,0.21215246]
[1768743913372,1.39664,95208.0,95201.0,0.09593467]
[1768743913774,1.39664,95208.0,95201.0,0.0939322]
[1768743916075,0.00231072,95209.0,95201.0,0.0939322]
[1768743916285,1.08208,95208.0,95202.0,0.11621779]
[1768743916486,0.96208,95208.0,95202.0,0.11621779]
[1768743916684,0.96208,95208.0,95190.0,0.11621779]
[1768743917082,0.11015982,95218.0,95192.0,0.11621779]
[1768743917282,1.39664,95217.0,95192.0,0.11621779]
[1768743917481,1.39664,95217.0,95194.0,0.11621779]
[1768743917883,1.39664,95217.0,95193.0,0.26261484]
[1768743917884,1.39664,95217.0,95196.0,0.11621779]
[1768743918281,1.39664,95216.0,95198.0,0.11621779]
[1768743918687,0.11015982,95215.0,95197.0,0.09593467]
[1768743920382,1.39664,95216.0,95198.0,0.09593467]
[1768743921290,1.39664,95215.0,95198.0,0.09593467]
[1768743922492,27.40482387,95219.0,95199.0,0.11247995]
[1768743922693,1.3966,95218.0,95200.0,0.09292633]
[1768743923085,1.51427776,95218.0,95200.0,0.09292633]
[1768743923389,0.11767776,95217.0,95200.0,0.09292633]
[1768743924396,1.3966,95216.0,95201.0,0.09292633]
[1768743925109,26.66805887,95219.0,95207.0,0.20540628]
[1768743925390,24.72399996,95219.0,95214.0,0.11247995]
[1768743925589,24.66620075,95219.0,95214.0,0.11247995]
[1768743925790,24.66620075,95219.0,95215.0,0.15842581]
[1768743925988,24.60840154,95219.0,95216.0,0.00541982]
[1768743926193,24.03196054,95219.0,95216.0,0.00541982]
[1768743926395,23.97416133,95219.0,95217.0,0.1584386]
[1768743926991,23.97416133,95219.0,95218.0,0.10502215]
[1768743927392,23.97116133,95219.0,95218.0,0.26153748]
[1768743929880,23.96816133,95219.0,95218.0,0.26153748]
[1768743930086,23.96516133,95219.0,95218.0,0.26253748]
[1768743931798,23.96516133,95219.0,95218.0,0.26153748]
[1768743933500,23.96216133,95219.0,95218.0,0.26253748]
[1768743934299,23.96216133,95219.0,95218.0,0.26153748]
[1768743941003,23.96216133,95219.0,95218.0,0.26253748]
[1768743941600,23.96216133,95219.0,95218.0,0.26153748]
[1768743947509,0.21151716,95218.0,95210.0,0.09456]
[1768743947715,0.09983069,95217.0,95210.0,0.15258128]
[1768743947907,23.96216133,95219.0,95215.0,0.04244499]
[1768743948203,23.96216133,95219.0,95211.0,0.10502657]
[1768743948510,23.96216133,95219.0,95216.0,0.15688621]
[1768743948901,23.96216133,95219.0,95211.0,0.15688621]
[1768743949108,0.11168647,95217.0,95210.0,0.15121768]
[1768743949406,0.11168647,95217.0,95211.0,0.1575768]
[1768743949707,23.96216133,95219.0,95211.0,0.1575768]
[1768743950107,23.98937103,95219.0,95211.0,0.1303671]
[1768743951097,23.96216133,95219.0,95211.0,0.1303671]
[1768743951300,25.26404133,95219.0,95203.0,0.09456]
[1768743951906,25.26404133,95219.0,95197.0,0.1211]
[1768743952111,25.26404133,95219.0,95197.0,0.17890381]
[1768743952314,25.26404133,95219.0,95204.0,0.11460284]
[1768743952611,25.26404133,95219.0,95199.0,0.15665005]
[1768743952812,25.26404133,95219.0,95205.0,0.15665005]
[1768743953311,25.26404133,95219.0,95200.0,0.15665005]
[1768743953507,23.96216133,95219.0,95206.0,0.15649341]
[1768743953808,23.96216133,95219.0,95207.0,0.09380142]
[1768743954108,23.43663333,95219.0,95210.0,0.20308692]
[1768743954411,23.43663333,95219.0,95211.0,0.25038868]
[1768743954708,23.43663333,95219.0,95212.0,0.09380142]
[1768743954910,22.55539492,95219.0,95212.0,0.09380142]
[1768743955114,21.91469892,95219.0,95214.0,0.010507]
[1768743955308,21.32036092,95219.0,95215.0,0.09380142]
[1768743955503,20.61416192,95219.0,95215.0,0.09380142]
[1768743955906,20.01501092,95219.0,95216.0,0.10502546]
[1768743956305,20.01501092,95219.0,95216.0,0.19882688]
[1768743957507,19.91501092,95219.0,95217.0,0.09380142]
[1768743958101,19.91501092,95219.0,95218.0,0.10502215]
[1768743959615,19.91501092,95219.0,95212.0,0.15101137]
[1768743960008,19.91501092,95219.0,95213.0,0.26346522]
[1768743961812,19.99265534,95219.0,95205.0,0.15317953]
[1768743962013,19.99265534,95219.0,95205.0,0.20376731]
[1768743962213,19.99265534,95219.0,95213.0,0.15775308]
[1768743962625,19.99265534,95219.0,95211.0,0.05058778]
[1768743963118,19.99265534,95219.0,95213.0,0.15751603]
[1768743963518,19.99265534,95219.0,95211.0,0.04939521]
[1768743963921,19.99265534,95219.0,95212.0,0.15649899]
[1768743965022,19.91501092,95219.0,95212.0,0.15649899]
[1768743968214,19.91501092,95219.0,95213.0,0.10502491]
[1768743969118,19.91501092,95219.0,95212.0,0.09380142]
[1768743969317,19.91501092,95219.0,95215.0,0.09380142]
[1768743969510,19.91501092,95219.0,95214.0,0.15815776]
[1768743969822,19.77314146,95219.0,95216.0,0.15670866]
[1768743970015,19.77314146,95219.0,95215.0,0.26173302]
[1768743970216,19.77314146,95219.0,95215.0,0.15670866]
[1768743970415,19.77314146,95219.0,95216.0,0.10502381]
[1768743970817,19.77314146,95219.0,95216.0,0.15808905]
[1768743971227,19.77314146,95219.0,95211.0,0.0497973]
[1768743971416,19.77314146,95219.0,95217.0,0.15759899]
[1768743971617,19.77314146,95219.0,95217.0,0.17475159]
[1768743971825,19.77314146,95219.0,95213.0,0.15759899]
[1768743972125,19.77314146,95219.0,95218.0,0.15759899]
[1768743972328,19.77314146,95219.0,95214.0,0.26262114]
[1768743972517,19.77314146,95219.0,95213.0,0.15759019]
[1768743972710,19.77314146,95219.0,95215.0,0.26261234]
[1768743973124,19.77314146,95219.0,95211.0,0.0494217]
[1768743973427,19.77314146,95219.0,95216.0,0.26261455]
[1768743973725,19.77314146,95219.0,95212.0,0.10502436]
[1768743974026,19.77314146,95219.0,95217.0,0.15780062]
[1768743974226,19.77314146,95219.0,95213.0,0.15780062]
[1768743974425,19.77314146,95219.0,95211.0,0.0494217]
[1768743974624,19.77314146,95219.0,95214.0,0.10502271]
[1768743974824,19.77314146,95219.0,95213.0,0.15662742]
[1768743975024,19.77314146,95219.0,95215.0,0.15662742]
[1768743975234,19.77314146,95219.0,95212.0,0.10502381]
[1768743975528,19.77314146,95219.0,95212.0,0.1574826]
[1768743975730,19.77314146,95219.0,95212.0,0.10502381]
[1768743976031,19.77314146,95219.0,95212.0,0.26250641]
[1768743979929,19.77314146,95219.0,95212.0,0.2618814]
[1768743983729,0.00010447,95218.0,95212.0,0.2618814]
[1768743984036,0.00010447,95218.0,95212.0,0.1574826]
[1768743984639,19.77314146,95219.0,95212.0,0.1574826]
[1768743984640,1.30204,95217.0,95212.0,0.1574826]
[1768743990839,1.30204,95217.0,95206.0,0.00015753]
[1768743991036,0.010507,95215.0,95206.0,0.00015753]
[1768743991230,0.010507,95213.0,95206.0,5.3e-07]
[1768743991434,1.30208,95212.0,95206.0,5.3e-07]
[1768743991633,0.09456,95211.0,95206.0,5.3e-07]
[1768743994133,0.105067,95211.0,95206.0,5.3e-07]
[1768743994642,1.39668,95210.0,95206.0,5.3e-07]
[1768743995341,1.30216,95209.0,95206.0,5.3e-07]
[1768743995726,19.78364746,95219.0,95206.0,5.3e-07]
[1768743995930,0.010507,95217.0,95206.0,5.3e-07]
[1768743996237,1.30216,95216.0,95207.0,0.10503319]
[1768743997332,1.30216,95216.0,95206.0,5.3e-07]
[1768743998339,19.77314146,95219.0,95206.0,5.3e-07]
[1768743998536,0.010507,95215.0,95206.0,5.3e-07]
[1768743999945,1.3022,95218.0,95206.0,5.3e-07]
[1768744001646,1.30224,95217.0,95206.0,5.3e-07]
[1768744003648,19.77314146,95219.0,95206.0,5.3e-07]
[1768744003834,1.30228,95218.0,95206.0,5.3e-07]
[1768744004038,1.30228,95217.0,95206.0,5.3e-07]
[1768744004243,19.77314146,95219.0,95207.0,0.10502822]
[1768744004637,19.77314146,95219.0,95206.0,5.3e-07]
[1768744007954,1.30232,95218.0,95206.0,5.3e-07]
[1768744012251,1.30232,95218.0,95207.0,0.10502877]
[1768744013545,1.30232,95218.0,95207.0,0.10271697]
[1768744014460,1.30232,95218.0,95207.0,0.19468569]
[1768744014956,21.07550146,95219.0,95207.0,0.19468569]
[1768744015640,21.07550146,95219.0,95207.0,0.10271697]
[1768744017353,19.77314146,95219.0,95207.0,0.10271697]
[1768744019055,19.24802146,95219.0,95208.0,0.09196872]
[1768744019258,18.75202146,95219.0,95208.0,0.15744109]
[1768744019655,18.75202146,95219.0,95209.0,0.19958767]
[1768744020159,18.75202146,95219.0,95210.0,0.15791639]
[1768744020556,18.75202146,95219.0,95210.0,0.24988511]
[1768744020754,18.75202146,95219.0,95211.0,0.10502657]
[1768744022568,18.75202146,95219.0,95209.0,0.09456]
[1768744023066,18.75202146,95219.0,95210.0,0.2619266]
[1768744028670,18.75202146,95219.0,95210.0,0.2629266]
[1768744029070,18.13345013,95219.0,95211.0,0.22127591]
[1768744029371,17.99157994,95219.0,95214.0,0.09196872]
[1768744030264,17.25317894,95219.0,95215.0,0.20749953]
[1768744030468,17.25317894,95219.0,95216.0,0.09196872]
[1768744030974,17.25317894,95219.0,95217.0,0.10502381]
[1768744032572,15.36511529,95219.0,95218.0,0.1572873]
[1768744033179,15.36511529,95219.0,95218.0,0.26230945]
[1768744033679,14.74213629,95219.0,95218.0,0.26230945]
[1768744035169,14.74213629,95219.0,95218.0,0.26330945]
[1768744036180,14.21235229,95219.0,95218.0,0.35527817]
[1768744036365,13.43716929,95219.0,95218.0,0.35527817]
[1768744036779,13.43716929,95219.0,95218.0,0.26230945]
[1768744037185,13.37939061,95219.0,95218.0,0.26230945]
[1768744037477,13.37939061,95219.0,95218.0,0.35427817]
[1768744037689,13.37939061,95219.0,95218.0,0.26330945]
[1768744038268,13.37939061,95219.0,95218.0,0.26230945]
[1768744039175,13.23753126,95219.0,95218.0,0.26230945]
[1768744040768,13.23753126,95219.0,95209.0,0.05636938]
[1768744040972,13.23753126,95219.0,95218.0,0.15803085]
[1768744041174,13.23753126,95219.0,95212.0,0.08890258]
[1768744041382,13.23753126,95219.0,95213.0,0.15803085]
[1768744041684,13.23753126,95219.0,95213.0,0.26305742]
[1768744041883,0.52512,95218.0,95213.0,0.26305742]
[1768744042769,0.52512,95216.0,95213.0,0.26305742]
[1768744042971,0.52512,95215.0,95213.0,0.26305742]
[1768744043170,0.52512,95216.0,95213.0,0.26305742]
[1768744043366,0.52512,95215.0,95213.0,0.26305742]
[1768744043781,0.52512,95214.0,95213.0,0.26305742]
[1768744043982,0.52512,95215.0,95213.0,0.26305742]
[1768744044371,0.52512,95214.0,95213.0,0.26305742]
[1768744044571,0.52512,95215.0,95213.0,0.26305742]
[1768744045079,0.52512,95214.0,95213.0,0.26305742]
[1768744045269,0.52512,95215.0,95213.0,0.26305742]
[1768744045472,13.23753126,95219.0,95213.0,0.26305742]
[1768744045674,0.52512,95214.0,95213.0,0.26305742]
[1768744045984,0.52512,95214.0,95213.0,0.15803085]
[1768744049378,0.38324675,95214.0,95213.0,0.15803085]
[1768744049688,0.38324675,95214.0,95207.0,0.15814094]
[1768744049886,0.38324675,95210.0,95206.0,0.05804185]
[1768744050186,0.38324675,95212.0,95207.0,0.26245489]
[1768744050685,0.38324675,95208.0,95207.0,0.26245489]
[1768744050984,0.38324675,95211.0,95207.0,0.26245489]
[1768744051583,0.38324675,95208.0,95207.0,0.26245489]
[1768744051787,0.38324675,95211.0,95207.0,0.26245489]
[1768744052276,0.38324675,95208.0,95207.0,0.26245489]
[1768744052476,0.38324675,95211.0,95207.0,0.26245489]
[1768744052989,0.38324675,95208.0,95207.0,0.26245489]
[1768744053171,0.38324675,95211.0,95207.0,0.26245489]
[1768744053482,13.23753126,95219.0,95207.0,0.26245489]
[1768744053876,0.38324675,95210.0,95207.0,0.26245489]
[1768744054079,13.23753126,95219.0,95207.0,0.26245489]
[1768744054287,0.38324675,95210.0,95207.0,0.26245489]
[1768744054777,0.38324675,95208.0,95207.0,0.26245489]
[1768744055088,0.38324675,95210.0,95207.0,0.26245489]
[1768744055587,0.38324675,95208.0,95207.0,0.26245489]
[1768744055788,0.38324675,95210.0,95207.0,0.26245489]
[1768744056179,0.38324675,95208.0,95207.0,0.26245489]
[1768744056380,0.38324675,95210.0,95207.0,0.26245489]
[1768744056875,0.38324675,95208.0,95207.0,0.26245489]
[1768744068891,13.23753126,95219.0,95207.0,0.26245489]
[1768744073487,13.23753126,95219.0,95209.0,0.09659677]
[1768744073887,13.23753126,95219.0,95210.0,0.1565375]
[1768744074290,13.23753126,95219.0,95210.0,0.26156517]
[1768744079896,13.23753126,95219.0,95210.0,0.1565375]
[1768744080097,13.23753126,95219.0,95198.0,1.30088]
[1768744080098,13.23753126,95219.0,95201.0,0.09456]
[1768744080403,13.23753126,95219.0,95211.0,0.08299954]
[1768744080591,13.23753126,95219.0,95206.0,0.26213296]
[1768744080892,13.24803726,95219.0,95208.0,0.15727155]
[1768744081198,0.010507,95211.0,95191.0,0.07548695]
[1768744081398,1.30248,95210.0,95190.0,0.07548695]
[1768744081595,1.30248,95210.0,95194.0,0.15727155]
[1768744081801,1.30248,95210.0,95190.0,0.07548695]
[1768744082096,1.30248,95210.0,95195.0,0.15657422]
[1768744082498,1.30248,95210.0,95190.0,0.07548695]
[1768744082698,1.30248,95210.0,95196.0,0.15814771]
[1768744083098,1.30248,95210.0,95190.0,0.07548695]
[1768744083293,1.30248,95210.0,95191.0,0.15814771]
[1768744083502,1.30248,95210.0,95197.0,0.15800134]
[1768744083799,1.30248,95210.0,95192.0,0.15730001]
[1768744084192,1.30248,95210.0,95191.0,0.15730001]